Department Family,Entity,Date,Expense Type,Expense Area,Supplier,Transaction Number,Amount,Description
Ministry of justice,CAFCASS,12/03/2024,Rent,HQ,AY UK LTD re London & Continental Railwa,1139763,"35,241.90",Croydon Rent
Ministry of justice,CAFCASS,12/03/2024,Service Charge,HQ,AY UK LTD re London & Continental Railwa,1139763,"14,282.32",Croydon Serv Chg
Ministry of justice,CAFCASS,13/03/2024,Rent,HQ,AY UK LTD re London & Continental Railwa,1139840,"74,820.84",Manchester 7F Rent
Ministry of justice,CAFCASS,13/03/2024,Service Charge,HQ,AY UK LTD re London & Continental Railwa,1139840,"24,346.60",Manchester 7F Serv Chg
Ministry of justice,CAFCASS,20/03/2024,Service Charge,HQ,AY UK LTD re Sports C T t/a Avison Young,1130433,"-48,459.38",Bloomsbury Balancing Service Charge
Ministry of justice,CAFCASS,20/03/2024,Contact rechargeable,HQ,Action for Children,1140269,"37,474.80",Planning Together for Children South East
Ministry of justice,CAFCASS,20/03/2024,Contact rechargeable,HQ,Action for Children,1140270,"39,892.00",Planning Together for Children South West
Ministry of justice,CAFCASS,26/03/2024,Rates,HQ,Birmingham City Council (Rates),1140293,"33,033.00",B'ham 5th FL Rates
Ministry of justice,CAFCASS,01/03/2024,System licence fees,HQ,Bytes Software Services Ltd,1139342,"40,742.67",Microsoft Azure Overage
Ministry of justice,CAFCASS,15/03/2024,Partnership Commissioned CS,HQ,Child Action Northwest,1139953,"43,321.63",Improving Child and Family Arrangements CANW North
Ministry of justice,CAFCASS,15/03/2024,Partnership Commissioned CS,HQ,Child Action Northwest,1139987,"37,637.51",Improving Child and Family Arrangements CANW West
Ministry of justice,CAFCASS,12/03/2024,Rent,HQ,Colliers International Common Client Acc,1139762,"26,128.78",Birmingham Rent
Ministry of justice,CAFCASS,12/03/2024,Service Charge,HQ,Colliers International Common Client Acc,1139762,"6,710.40",Birmingham Serv Chg
Ministry of justice,CAFCASS,01/03/2024,Agency Practitioners,HQ,Community Resourcing Ltd t/a Retinue Sol,1139304,"3,629.71",Agency Staff
Ministry of justice,CAFCASS,01/03/2024,Agency Practitioners,Op Service Areas,Community Resourcing Ltd t/a Retinue Sol,1139304,"69,215.90",Agency Staff
Ministry of justice,CAFCASS,01/03/2024,Temp Business Support Staff,HQ,Community Resourcing Ltd t/a Retinue Sol,1139304,"6,803.32",Temp Business Support Staff
Ministry of justice,CAFCASS,01/03/2024,Temp Business Support Staff,Op Service Areas,Community Resourcing Ltd t/a Retinue Sol,1139304,"1,225.15",Temp Business Support Staff
Ministry of justice,CAFCASS,14/03/2024,Agency Practitioners,HQ,Community Resourcing Ltd t/a Retinue Sol,1139868,"3,629.69",Agency Staff
Ministry of justice,CAFCASS,14/03/2024,Agency Practitioners,Op Service Areas,Community Resourcing Ltd t/a Retinue Sol,1139868,"69,616.37",Agency Staff
Ministry of justice,CAFCASS,14/03/2024,Temp Business Support Staff,HQ,Community Resourcing Ltd t/a Retinue Sol,1139868,"6,023.76",Temp Business Support Staff
Ministry of justice,CAFCASS,14/03/2024,Temp Business Support Staff,Op Service Areas,Community Resourcing Ltd t/a Retinue Sol,1139868,"1,225.15",Temp Business Support Staff
Ministry of justice,CAFCASS,20/03/2024,Agency Practitioners,HQ,Community Resourcing Ltd t/a Retinue Sol,1140213,"1,324.51",Agency Staff
Ministry of justice,CAFCASS,20/03/2024,Agency Practitioners,Op Service Areas,Community Resourcing Ltd t/a Retinue Sol,1140213,"28,377.38",Agency Staff
Ministry of justice,CAFCASS,20/03/2024,Temp Business Support Staff,HQ,Community Resourcing Ltd t/a Retinue Sol,1140213,"6,588.84",Temp Business Support Staff
Ministry of justice,CAFCASS,20/03/2024,Temp Business Support Staff,Op Service Areas,Community Resourcing Ltd t/a Retinue Sol,1140213,"1,212.40",Temp Business Support Staff
Ministry of justice,CAFCASS,26/03/2024,Agency Practitioners,Op Service Areas,Community Resourcing Ltd t/a Retinue Sol,1140473,"60,737.71",Agency Staff
Ministry of justice,CAFCASS,26/03/2024,Temp Business Support Staff,HQ,Community Resourcing Ltd t/a Retinue Sol,1140473,"5,196.43",Temp Business Support Staff
Ministry of justice,CAFCASS,26/03/2024,Temp Business Support Staff,Op Service Areas,Community Resourcing Ltd t/a Retinue Sol,1140473,829.54,Temp Business Support Staff
Ministry of justice,CAFCASS,19/03/2024,T&S - UK (Non-Taxable),HQ,Corporate Travel Mngmnt North t/a CTM,1140198,448.80,Corporate Travel Management Taxi
Ministry of justice,CAFCASS,19/03/2024,T&S - UK (Non-Taxable),HQ,Corporate Travel Mngmnt North t/a CTM,1140198,"10,295.45",Corporate Travel Management
Ministry of justice,CAFCASS,19/03/2024,T&S - UK (Non-Taxable),Op Service Areas,Corporate Travel Mngmnt North t/a CTM,1140198,"22,142.67",Corporate Travel Management
Ministry of justice,CAFCASS,19/03/2024,T&S - UK (Non-Taxable) hotel,HQ,Corporate Travel Mngmnt North t/a CTM,1140198,"14,593.53",Corporate Travel Management hotel
Ministry of justice,CAFCASS,19/03/2024,T&S - UK (Non-Taxable) hotel,Op Service Areas,Corporate Travel Mngmnt North t/a CTM,1140198,"15,105.89",Corporate Travel Management hotel
Ministry of justice,CAFCASS,26/03/2024,Rates,HQ,Coventry City Council (Rates),1140459,"167,895.00",National Business Centre Rates
Ministry of justice,CAFCASS,27/03/2024,Rates,HQ,Croydon Council,1140780,"51,506.00",Croydon Rates
Ministry of justice,CAFCASS,14/03/2024,Rent,HQ,Euro Grays Inn Inc t/a Optimum Property,1140031,"49,932.00",London GF Rent
Ministry of justice,CAFCASS,14/03/2024,Rent,HQ,Euro Grays Inn Inc t/a Optimum Property,1140033,"103,668.76",London 1stF Rent
Ministry of justice,CAFCASS,06/03/2024,Telecom Equipment < 2.5k,HQ,Jigsaw24,1139514,"38,430.00",Telephony Services
Ministry of justice,CAFCASS,27/03/2024,Telecom Equipment < 2.5k,HQ,Jigsaw24,1140390,"38,430.00",Telephony Services
Ministry of justice,CAFCASS,26/03/2024,Rates,HQ,Manchester City Council (Rates),1140205,"83,538.00",Manchester 7Fl Rates
Ministry of justice,CAFCASS,26/03/2024,Rates,HQ,Nottingham City Council Business Rates,1140488,"32,760.00",Nottingham Rates
Ministry of justice,CAFCASS,01/03/2024,Other IT contracted costs,HQ,Specialist Computer Centres Plc,1139298,"40,470.68",Laptops & Sleeves
Ministry of justice,CAFCASS,13/03/2024,Partnership Commissioned CS,HQ,Swan Family Centres Limited,1139815,"28,437.50",Improving Child and Family Arrangements Swan Family SE
Ministry of justice,CAFCASS,11/03/2024,Rent,HQ,University of Warwick Science Park,1139701,"36,263.80",National Business Centre Rent
Ministry of justice,CAFCASS,11/03/2024,Service Charge,HQ,University of Warwick Science Park,1139701,"6,029.53",National Business Centre Serv Chg
Ministry of justice,CAFCASS,27/03/2024,Rates,HQ,Vale of White Horse District Council,1140782,"28,416.92",Oxford Rates
Ministry of justice,CAFCASS,07/03/2024,Version 1,HQ,Version 1 Solutions Limited,1139566,"150,000.00",Technology services
Ministry of justice,CAFCASS,15/03/2024,Version 1 Development,HQ,Version 1 Solutions Limited,1139931,"33,600.00",Technology services
